[Event "Titled Tuesday Blitz January 10 Early 2023"]
[White "Shimanov, Aleksandr"]
[Black "Murzin, Volodar"]
[WhiteFideId "4198603"]
[BlackFideId "44155573"]
[WhiteElo "2581"]
[BlackElo "2604"]
[Result "0-1"]
[Round "05"]
[TimeControl "180+2"]
[Date "2023.01.10"]
[WhiteClock "0:00:06"]
[BlackClock "0:00:05"]

1. b3 {[%clk 0:02:58]}  e5 {[%clk 0:02:52]} 2. Bb2 {[%clk 0:02:58]}  Nc6 {[%clk 0:02:52]} 3. c4 {[%clk 0:02:57]}  g6 {[%clk 0:02:52]} 4. Nf3 {[%clk 0:02:55]}  Bg7 {[%clk 0:02:52]} 5. e3 {[%clk 0:02:56]}  Nge7 {[%clk 0:02:52]} 6. d3 {[%clk 0:02:53]}  O-O {[%clk 0:02:53]} 7. Qc2 {[%clk 0:02:51]}  d5 {[%clk 0:02:50]} 8. cxd5 {[%clk 0:02:51]}  Nxd5 {[%clk 0:02:51]} 9. a3 {[%clk 0:02:51]}  Bg4 {[%clk 0:02:37]} 10. Be2 {[%clk 0:02:51]}  Bxf3 {[%clk 0:02:30]} 11. Bxf3 {[%clk 0:02:48]}  Ndb4 {[%clk 0:02:28]} 12. axb4 {[%clk 0:02:42]}  Nxb4 {[%clk 0:02:29]} 13. Qd2 {[%clk 0:02:31]}  Nxd3+ {[%clk 0:02:27]} 14. Ke2 {[%clk 0:02:30]}  Nxb2 {[%clk 0:02:27]} 15. Bxb7 {[%clk 0:02:27]}  Qb8 {[%clk 0:01:19]} 16. Bxa8 {[%clk 0:02:19]}  Qb5+ {[%clk 0:01:17]} 17. Kf3 {[%clk 0:02:07]}  Rxa8 {[%clk 0:01:16]} 18. Nc3 {[%clk 0:02:01]}  e4+ {[%clk 0:01:13]} 19. Nxe4 {[%clk 0:01:50]}  Qf5+ {[%clk 0:01:07]} 20. Kg3 {[%clk 0:01:50]}  Qxe4 {[%clk 0:01:07]} 21. f3 {[%clk 0:01:50]}  Be5+ {[%clk 0:00:45]} 22. Kf2 {[%clk 0:01:50]}  Qd3 {[%clk 0:00:46]} 23. Qe2 {[%clk 0:01:45]}  Rd8 {[%clk 0:00:38]} 24. Rab1 {[%clk 0:01:03]}  Qd2 {[%clk 0:00:24]} 25. f4 {[%clk 0:00:56]}  Bxf4 {[%clk 0:00:11]} 26. Rxb2 {[%clk 0:00:54]}  Bxe3+ {[%clk 0:00:11]} 27. Kg3 {[%clk 0:00:51]}  Qc3 {[%clk 0:00:07]} 28. Rc2 {[%clk 0:00:41]}  Qd4 {[%clk 0:00:04]} 29. Rf1 {[%clk 0:00:36]}  h5 {[%clk 0:00:03]} 30. Rc4 {[%clk 0:00:25]}  Qe5+ {[%clk 0:00:04]} 31. Kh3 {[%clk 0:00:26]}  Rd2 {[%clk 0:00:05]} 32. Qf3 {[%clk 0:00:25]}  Qe6+ {[%clk 0:00:05]} 33. g4 {[%clk 0:00:22]}  Bd4 {[%clk 0:00:03]} 34. Rc6 {[%clk 0:00:09]}  hxg4+ {[%clk 0:00:02]} 35. Kh4 {[%clk 0:00:08]}  Rxh2+ {[%clk 0:00:03]} 36. Kg5 {[%clk 0:00:08]}  Rh5+ {[%clk 0:00:03]} 37. Kf4 {[%clk 0:00:07]}  Rf5+ {[%clk 0:00:04]} 38. Kxg4 {[%clk 0:00:07]}  Rxf3+ {[%clk 0:00:05]} 39. Rxe6 {[%clk 0:00:06]}  Rxf1 {[%clk 0:00:05]} 0-1


[Site "https://www.chess.com"]

[Event "Titled Tuesday Blitz January 10 Early 2023"]
[White "Ohanyan, Emin"]
[Black "Arabidze, Meri"]
[WhiteFideId "13312022"]
[BlackFideId "13604040"]
[WhiteElo "2444"]
[BlackElo "2441"]
[Result "0-1"]
[Round "05"]
[TimeControl "180+2"]
[Date "2023.01.10"]
[WhiteClock "0:00:02"]
[BlackClock "0:00:07"]

1. e4 {[%clk 0:03:00]}  c5 {[%clk 0:02:59]} 2. Nf3 {[%clk 0:02:59]}  e6 {[%clk 0:02:58]} 3. d4 {[%clk 0:03:00]}  cxd4 {[%clk 0:02:59]} 4. Nxd4 {[%clk 0:03:01]}  Nc6 {[%clk 0:02:59]} 5. Nc3 {[%clk 0:03:01]}  a6 {[%clk 0:02:59]} 6. Nxc6 {[%clk 0:03:01]}  bxc6 {[%clk 0:03:00]} 7. Bd3 {[%clk 0:03:02]}  d5 {[%clk 0:03:01]} 8. O-O {[%clk 0:03:03]}  Nf6 {[%clk 0:03:01]} 9. e5 {[%clk 0:03:03]}  Nd7 {[%clk 0:03:01]} 10. Re1 {[%clk 0:03:04]}  Bb7 {[%clk 0:02:59]} 11. Qg4 {[%clk 0:02:56]}  Qc7 {[%clk 0:02:57]} 12. Qg3 {[%clk 0:02:56]}  c5 {[%clk 0:02:55]} 13. b3 {[%clk 0:02:43]}  g6 {[%clk 0:02:54]} 14. h4 {[%clk 0:02:18]}  Bg7 {[%clk 0:02:45]} 15. Bf4 {[%clk 0:02:15]}  O-O-O {[%clk 0:01:50]} 16. h5 {[%clk 0:02:09]}  Rhg8 {[%clk 0:01:48]} 17. h6 {[%clk 0:02:07]}  Bh8 {[%clk 0:01:45]} 18. Qh2 {[%clk 0:02:06]}  Qc6 {[%clk 0:01:36]} 19. a4 {[%clk 0:02:00]}  Kb8 {[%clk 0:01:20]} 20. Nd1 {[%clk 0:01:16]}  Ka8 {[%clk 0:01:10]} 21. Ne3 {[%clk 0:01:13]}  f6 {[%clk 0:01:01]} 22. Ng4 {[%clk 0:01:08]}  f5 {[%clk 0:00:55]} 23. Nf6 {[%clk 0:01:08]}  Nxf6 {[%clk 0:00:48]} 24. exf6 {[%clk 0:01:09]}  Bxf6 {[%clk 0:00:48]} 25. Bb5 {[%clk 0:01:07]}  Qc8 {[%clk 0:00:46]} 26. Be5 {[%clk 0:01:02]}  Rgf8 {[%clk 0:00:34]} 27. Bxf6 {[%clk 0:01:01]}  Rxf6 {[%clk 0:00:35]} 28. Qe5 {[%clk 0:01:01]}  Rdf8 {[%clk 0:00:36]} 29. Be2 {[%clk 0:00:59]}  Qb8 {[%clk 0:00:34]} 30. Bf3 {[%clk 0:00:56]}  Qxe5 {[%clk 0:00:32]} 31. Rxe5 {[%clk 0:00:57]}  g5 {[%clk 0:00:25]} 32. Rae1 {[%clk 0:00:54]}  g4 {[%clk 0:00:25]} 33. Bd1 {[%clk 0:00:54]}  Rxh6 {[%clk 0:00:19]} 34. Rxe6 {[%clk 0:00:54]}  Rxe6 {[%clk 0:00:20]} 35. Rxe6 {[%clk 0:00:55]}  Rf7 {[%clk 0:00:18]} 36. g3 {[%clk 0:00:42]}  Ka7 {[%clk 0:00:18]} 37. a5 {[%clk 0:00:42]}  h5 {[%clk 0:00:18]} 38. Be2 {[%clk 0:00:43]}  h4 {[%clk 0:00:17]} 39. gxh4 {[%clk 0:00:43]}  Rh7 {[%clk 0:00:17]} 40. Rf6 {[%clk 0:00:43]}  Rxh4 {[%clk 0:00:17]} 41. Rxf5 {[%clk 0:00:43]}  d4 {[%clk 0:00:17]} 42. f3 {[%clk 0:00:39]}  gxf3 {[%clk 0:00:12]} 43. Bxf3 {[%clk 0:00:40]}  Bxf3 {[%clk 0:00:13]} 44. Rxf3 {[%clk 0:00:41]}  Kb7 {[%clk 0:00:13]} 45. Rf6 {[%clk 0:00:41]}  Rh3 {[%clk 0:00:12]} 46. Rb6+ {[%clk 0:00:27]}  Ka7 {[%clk 0:00:12]} 47. b4 {[%clk 0:00:28]}  Rc3 {[%clk 0:00:12]} 48. bxc5 {[%clk 0:00:26]}  Rxc5 {[%clk 0:00:13]} 49. Rd6 {[%clk 0:00:27]}  Rxa5 {[%clk 0:00:12]} 50. Rxd4 {[%clk 0:00:28]}  Rc5 {[%clk 0:00:13]} 51. Rd2 {[%clk 0:00:28]}  Kb6 {[%clk 0:00:13]} 52. Kf2 {[%clk 0:00:28]}  Kb5 {[%clk 0:00:14]} 53. Ke2 {[%clk 0:00:29]}  a5 {[%clk 0:00:14]} 54. Kd1 {[%clk 0:00:30]}  Kb4 {[%clk 0:00:15]} 55. Kc1 {[%clk 0:00:30]}  a4 {[%clk 0:00:15]} 56. Rd4+ {[%clk 0:00:29]}  Rc4 {[%clk 0:00:15]} 57. Rd8 {[%clk 0:00:28]}  a3 {[%clk 0:00:15]} 58. Rb8+ {[%clk 0:00:29]}  Ka4 {[%clk 0:00:15]} 59. Ra8+ {[%clk 0:00:29]}  Kb4 {[%clk 0:00:15]} 60. Kb1 {[%clk 0:00:30]}  Rh4 {[%clk 0:00:14]} 61. Ka2 {[%clk 0:00:30]}  Rh3 {[%clk 0:00:15]} 62. Rb8+ {[%clk 0:00:29]}  Ka4 {[%clk 0:00:15]} 63. Rc8 {[%clk 0:00:29]}  Kb4 {[%clk 0:00:14]} 64. Rb8+ {[%clk 0:00:30]}  Ka4 {[%clk 0:00:15]} 65. Rb7 {[%clk 0:00:25]}  Rg3 {[%clk 0:00:14]} 66. Rh7 {[%clk 0:00:24]}  Rf3 {[%clk 0:00:14]} 67. Rh4+ {[%clk 0:00:24]}  Kb5 {[%clk 0:00:14]} 68. Re4 {[%clk 0:00:25]}  Ka5 {[%clk 0:00:13]} 69. Rd4 {[%clk 0:00:25]}  Kb5 {[%clk 0:00:13]} 70. Rh4 {[%clk 0:00:25]}  Ka5 {[%clk 0:00:13]} 71. Rg4 {[%clk 0:00:21]}  Kb5 {[%clk 0:00:13]} 72. Ka1 {[%clk 0:00:22]}  Ka5 {[%clk 0:00:13]} 73. Kb1 {[%clk 0:00:17]}  Kb5 {[%clk 0:00:13]} 74. Rg8 {[%clk 0:00:17]}  Ka5 {[%clk 0:00:13]} 75. Rb8 {[%clk 0:00:15]}  Ka4 {[%clk 0:00:13]} 76. Rb7 {[%clk 0:00:15]}  Rg3 {[%clk 0:00:12]} 77. Kc1 {[%clk 0:00:12]}  Rg1+ {[%clk 0:00:12]} 78. Kd2 {[%clk 0:00:12]}  Rg3 {[%clk 0:00:12]} 79. Rb8 {[%clk 0:00:11]}  Rh3 {[%clk 0:00:12]} 80. c4 {[%clk 0:00:06]}  a2 {[%clk 0:00:11]} 81. Kc2 {[%clk 0:00:05]}  Rh2+ {[%clk 0:00:10]} 82. Kd3 {[%clk 0:00:06]}  Ka3 {[%clk 0:00:09]} 83. c5 {[%clk 0:00:01]}  Rh4 {[%clk 0:00:08]} 84. Kc3 {[%clk 0:00:01]}  Rh3+ {[%clk 0:00:08]} 85. Kc4 {[%clk 0:00:01]}  Rh4+ {[%clk 0:00:08]} 86. Kd5 {[%clk 0:00:01]}  a1=Q {[%clk 0:00:08]} 87. Ra8+ {[%clk 0:00:02]}  Ra4 {[%clk 0:00:08]} 88. Re8 {[%clk 0:00:02]}  Qa2+ {[%clk 0:00:08]} 89. Kc6 {[%clk 0:00:03]}  Qg2+ {[%clk 0:00:07]} 90. Kb5 {[%clk 0:00:02]}  Rb4+ {[%clk 0:00:07]} 91. Ka5 {[%clk 0:00:02]}  Ra4+ {[%clk 0:00:07]} 92. Kb6 {[%clk 0:00:02]}  Qb2+ {[%clk 0:00:06]} 93. Kc6 {[%clk 0:00:02]}  Ra6+ {[%clk 0:00:07]} 94. Kd5 {[%clk 0:00:02]}  Qb3+ {[%clk 0:00:07]} 95. Ke5 {[%clk 0:00:02]}  Qe3+ {[%clk 0:00:07]} 96. Kd5 {[%clk 0:00:02]}  Qxe8 {[%clk 0:00:07]} 0-1


[Site "https://www.chess.com"]

[Event "Titled Tuesday Blitz January 10 Early 2023"]
[White "Tatarinov, Dmitry"]
[Black "Alexakis, Dimitris"]
[WhiteFideId "24160067"]
[BlackFideId "4277023"]
[WhiteElo "2310"]
[BlackElo "2436"]
[Result "0-1"]
[Round "05"]
[TimeControl "180+2"]
[Date "2023.01.10"]
[WhiteClock "0:00:57"]
[BlackClock "0:01:06"]

1. c4 {[%clk 0:02:44]}  g6 {[%clk 0:02:58]} 2. g3 {[%clk 0:02:44]}  Bg7 {[%clk 0:02:59]} 3. Bg2 {[%clk 0:02:45]}  Nf6 {[%clk 0:02:59]} 4. Nc3 {[%clk 0:02:46]}  O-O {[%clk 0:02:59]} 5. e4 {[%clk 0:02:46]}  d6 {[%clk 0:03:00]} 6. d4 {[%clk 0:02:46]}  c5 {[%clk 0:02:59]} 7. Nge2 {[%clk 0:02:43]}  Nc6 {[%clk 0:02:58]} 8. d5 {[%clk 0:02:43]}  Na5 {[%clk 0:02:55]} 9. Qd3 {[%clk 0:02:41]}  Nd7 {[%clk 0:02:52]} 10. f4 {[%clk 0:02:40]}  a6 {[%clk 0:02:51]} 11. a4 {[%clk 0:02:40]}  Nb3 {[%clk 0:02:45]} 12. Ra3 {[%clk 0:02:32]}  Nxc1 {[%clk 0:02:45]} 13. Nxc1 {[%clk 0:02:33]}  Rb8 {[%clk 0:02:36]} 14. O-O {[%clk 0:02:31]}  Nf6 {[%clk 0:02:29]} 15. Kh1 {[%clk 0:02:30]}  Ne8 {[%clk 0:02:30]} 16. Rb3 {[%clk 0:02:21]}  Nc7 {[%clk 0:02:28]} 17. a5 {[%clk 0:02:16]}  Na8 {[%clk 0:02:19]} 18. Ra3 {[%clk 0:02:14]}  b5 {[%clk 0:02:19]} 19. axb6 {[%clk 0:02:09]}  Rxb6 {[%clk 0:02:18]} 20. Nb3 {[%clk 0:02:06]}  Bd7 {[%clk 0:02:12]} 21. e5 {[%clk 0:02:02]}  Qb8 {[%clk 0:02:07]} 22. Ne4 {[%clk 0:01:55]}  Bf5 {[%clk 0:01:59]} 23. h3 {[%clk 0:01:50]}  dxe5 {[%clk 0:01:48]} 24. fxe5 {[%clk 0:01:47]}  Bxe5 {[%clk 0:01:46]} 25. g4 {[%clk 0:01:47]}  Bxe4 {[%clk 0:01:44]} 26. Bxe4 {[%clk 0:01:47]}  Bxb2 {[%clk 0:01:44]} 27. Nxc5 {[%clk 0:01:44]}  Bxa3 {[%clk 0:01:42]} 28. Qxa3 {[%clk 0:01:38]}  Qd6 {[%clk 0:01:42]} 29. Qe3 {[%clk 0:01:36]}  Rc8 {[%clk 0:01:37]} 30. Na4 {[%clk 0:01:24]}  Rb4 {[%clk 0:01:36]} 31. c5 {[%clk 0:01:24]}  Qe5 {[%clk 0:01:31]} 32. Nc3 {[%clk 0:01:24]}  Rc4 {[%clk 0:01:30]} 33. Rxf7 {[%clk 0:01:06]}  Rxc3 {[%clk 0:01:19]} 34. Qh6 {[%clk 0:01:01]}  Qxe4+ {[%clk 0:01:12]} 35. Kg1 {[%clk 0:00:59]}  Qe3+ {[%clk 0:01:05]} 36. Qxe3 {[%clk 0:00:57]}  Rxe3 {[%clk 0:01:06]} 37. Rxe7 {[%clk 0:00:57]}  Rxe7 {[%clk 0:01:06]} 0-1


[Site "https://www.chess.com"]

[Event "Titled Tuesday Blitz January 10 Early 2023"]
[White "Harsh Suresh"]
[Black "Hsu, Li Yang"]
[WhiteFideId "45018464"]
[BlackFideId "5800080"]
[WhiteElo "2298"]
[BlackElo "2427"]
[Result "1-0"]
[Round "05"]
[TimeControl "180+2"]
[Date "2023.01.10"]
[WhiteClock "0:00:31"]
[BlackClock "0:00:03"]

1. e4 {[%clk 0:03:00]}  c6 {[%clk 0:02:59]} 2. d3 {[%clk 0:02:58]}  d5 {[%clk 0:03:00]} 3. Nd2 {[%clk 0:02:58]}  e5 {[%clk 0:02:54]} 4. Ngf3 {[%clk 0:02:58]}  Bd6 {[%clk 0:02:52]} 5. d4 {[%clk 0:02:58]}  exd4 {[%clk 0:02:43]} 6. exd5 {[%clk 0:02:57]}  cxd5 {[%clk 0:02:44]} 7. Bb5+ {[%clk 0:02:50]}  Nc6 {[%clk 0:02:44]} 8. Nxd4 {[%clk 0:02:43]}  Bd7 {[%clk 0:02:43]} 9. Nxc6 {[%clk 0:02:41]}  bxc6 {[%clk 0:02:42]} 10. Bd3 {[%clk 0:02:41]}  Nf6 {[%clk 0:02:32]} 11. O-O {[%clk 0:02:40]}  O-O {[%clk 0:02:30]} 12. Nf3 {[%clk 0:02:39]}  h6 {[%clk 0:02:30]} 13. h3 {[%clk 0:02:34]}  c5 {[%clk 0:02:15]} 14. b3 {[%clk 0:02:33]}  a5 {[%clk 0:02:13]} 15. Bb2 {[%clk 0:02:23]}  a4 {[%clk 0:02:00]} 16. Qd2 {[%clk 0:02:23]}  a3 {[%clk 0:01:34]} 17. Be5 {[%clk 0:02:23]}  Bxe5 {[%clk 0:01:26]} 18. Nxe5 {[%clk 0:02:24]}  Re8 {[%clk 0:01:22]} 19. Rfe1 {[%clk 0:02:21]}  Be6 {[%clk 0:01:19]} 20. Qf4 {[%clk 0:02:02]}  d4 {[%clk 0:01:15]} 21. Qf3 {[%clk 0:01:44]}  Bd5 {[%clk 0:01:07]} 22. Qg3 {[%clk 0:01:40]}  Qd6 {[%clk 0:01:04]} 23. f4 {[%clk 0:01:28]}  Re7 {[%clk 0:00:52]} 24. Re2 {[%clk 0:01:24]}  Rae8 {[%clk 0:00:50]} 25. Rae1 {[%clk 0:01:25]}  Bb7 {[%clk 0:00:19]} 26. Bb5 {[%clk 0:01:00]}  Qd8 {[%clk 0:00:05]} 27. Bxe8 {[%clk 0:00:37]}  Qxe8 {[%clk 0:00:06]} 28. Ng4 {[%clk 0:00:33]}  Ne4 {[%clk 0:00:03]} 29. Rxe4 {[%clk 0:00:31]} 1-0


[Site "https://www.chess.com"]

[Event "Titled Tuesday Blitz January 10 Early 2023"]
[White "UnknownMagician"]
[Black "Demchenko, Anton"]
[BlackFideId "4160258"]
[WhiteElo "2657"]
[BlackElo "2623"]
[Result "0-1"]
[Round "05"]
[TimeControl "180+2"]
[Date "2023.01.10"]
[WhiteClock "0:00:01"]
[BlackClock "0:00:57"]

1. c4 {[%clk 0:02:50]}  d6 {[%clk 0:02:59]} 2. Nc3 {[%clk 0:02:49]}  e5 {[%clk 0:02:59]} 3. d3 {[%clk 0:02:49]}  f5 {[%clk 0:02:57]} 4. Nf3 {[%clk 0:02:48]}  Nf6 {[%clk 0:02:58]} 5. g3 {[%clk 0:02:48]}  Be7 {[%clk 0:02:58]} 6. Bg2 {[%clk 0:02:48]}  O-O {[%clk 0:02:59]} 7. O-O {[%clk 0:02:49]}  Nc6 {[%clk 0:02:51]} 8. Rb1 {[%clk 0:02:48]}  a5 {[%clk 0:02:42]} 9. a3 {[%clk 0:02:48]}  h6 {[%clk 0:02:38]} 10. b4 {[%clk 0:02:46]}  axb4 {[%clk 0:02:38]} 11. axb4 {[%clk 0:02:47]}  Be6 {[%clk 0:02:38]} 12. b5 {[%clk 0:02:43]}  Na5 {[%clk 0:02:38]} 13. Nd2 {[%clk 0:02:40]}  c6 {[%clk 0:02:32]} 14. Nb3 {[%clk 0:02:38]}  d5 {[%clk 0:02:23]} 15. bxc6 {[%clk 0:02:25]}  bxc6 {[%clk 0:02:24]} 16. cxd5 {[%clk 0:02:21]}  cxd5 {[%clk 0:02:21]} 17. Nxa5 {[%clk 0:01:57]}  Rxa5 {[%clk 0:02:17]} 18. d4 {[%clk 0:01:50]}  e4 {[%clk 0:02:15]} 19. Bf4 {[%clk 0:01:49]}  g5 {[%clk 0:02:06]} 20. Be5 {[%clk 0:01:49]}  Ng4 {[%clk 0:02:07]} 21. Rb8 {[%clk 0:01:30]}  Qd7 {[%clk 0:02:07]} 22. Rxf8+ {[%clk 0:01:30]}  Bxf8 {[%clk 0:02:08]} 23. e3 {[%clk 0:01:29]}  Ra3 {[%clk 0:02:05]} 24. Qc1 {[%clk 0:01:14]}  Qc6 {[%clk 0:01:41]} 25. Ne2 {[%clk 0:00:32]}  Qa6 {[%clk 0:01:41]} 26. Re1 {[%clk 0:00:30]}  Bb4 {[%clk 0:01:25]} 27. Qc7 {[%clk 0:00:08]}  Nxe5 {[%clk 0:01:23]} 28. dxe5 {[%clk 0:00:02]}  Bxe1 {[%clk 0:01:20]} 29. Nd4 {[%clk 0:00:02]}  Bb4 {[%clk 0:00:57]} 30. Qd8+ {[%clk 0:00:01]}  Bf8 {[%clk 0:00:57]} 0-1


[Site "https://www.chess.com"]

[Event "Titled Tuesday Blitz January 10 Early 2023"]
[White "Galchenko, Matvey"]
[Black "Sokolovsky, Yahli"]
[WhiteFideId "24175480"]
[BlackFideId "2820242"]
[WhiteElo "2438"]
[BlackElo "2461"]
[Result "1-0"]
[Round "05"]
[TimeControl "180+2"]
[Date "2023.01.10"]
[WhiteClock "0:00:21"]
[BlackClock "0:00:13"]

1. f4 {[%clk 0:03:00]}  g6 {[%clk 0:02:31]} 2. Nf3 {[%clk 0:02:59]}  Bg7 {[%clk 0:02:32]} 3. g3 {[%clk 0:03:00]}  d5 {[%clk 0:02:23]} 4. Bg2 {[%clk 0:03:00]}  Bf5 {[%clk 0:02:21]} 5. O-O {[%clk 0:03:01]}  Nf6 {[%clk 0:02:21]} 6. d3 {[%clk 0:03:00]}  O-O {[%clk 0:02:18]} 7. Nc3 {[%clk 0:03:01]}  d4 {[%clk 0:02:16]} 8. e4 {[%clk 0:02:55]}  dxc3 {[%clk 0:01:59]} 9. exf5 {[%clk 0:02:56]}  gxf5 {[%clk 0:02:00]} 10. bxc3 {[%clk 0:02:57]}  Nd5 {[%clk 0:01:57]} 11. Bd2 {[%clk 0:02:57]}  Nxc3 {[%clk 0:01:55]} 12. Qe1 {[%clk 0:02:57]}  Nd5 {[%clk 0:01:56]} 13. Rb1 {[%clk 0:02:57]}  e6 {[%clk 0:01:18]} 14. Rxb7 {[%clk 0:02:50]}  Nd7 {[%clk 0:01:14]} 15. Rb1 {[%clk 0:02:39]}  Rb8 {[%clk 0:01:14]} 16. Qf2 {[%clk 0:02:33]}  N7b6 {[%clk 0:01:11]} 17. Ne5 {[%clk 0:02:28]}  Qe8 {[%clk 0:01:03]} 18. c4 {[%clk 0:02:21]}  Ne7 {[%clk 0:01:03]} 19. Qc5 {[%clk 0:02:19]}  Nd7 {[%clk 0:00:56]} 20. Qxc7 {[%clk 0:01:54]}  Rxb1 {[%clk 0:00:57]} 21. Rxb1 {[%clk 0:01:54]}  Nxe5 {[%clk 0:00:58]} 22. fxe5 {[%clk 0:01:54]}  Qd8 {[%clk 0:00:58]} 23. Qxd8 {[%clk 0:01:38]}  Rxd8 {[%clk 0:00:59]} 24. Bg5 {[%clk 0:01:38]}  Re8 {[%clk 0:00:39]} 25. Rb7 {[%clk 0:01:33]}  Ng6 {[%clk 0:00:37]} 26. d4 {[%clk 0:01:33]}  h6 {[%clk 0:00:38]} 27. Be3 {[%clk 0:01:33]}  f6 {[%clk 0:00:37]} 28. Bf3 {[%clk 0:01:08]}  Re7 {[%clk 0:00:31]} 29. Rb8+ {[%clk 0:01:01]}  Kh7 {[%clk 0:00:15]} 30. exf6 {[%clk 0:01:01]}  Bxf6 {[%clk 0:00:16]} 31. c5 {[%clk 0:01:01]}  f4 {[%clk 0:00:14]} 32. gxf4 {[%clk 0:01:01]}  Nh4 {[%clk 0:00:14]} 33. Be4+ {[%clk 0:01:01]}  Nf5 {[%clk 0:00:13]} 34. d5 {[%clk 0:00:56]}  Kg7 {[%clk 0:00:11]} 35. d6 {[%clk 0:00:53]}  Nxe3 {[%clk 0:00:11]} 36. dxe7 {[%clk 0:00:51]}  Bxe7 {[%clk 0:00:12]} 37. c6 {[%clk 0:00:47]}  Bc5 {[%clk 0:00:12]} 38. Rb5 {[%clk 0:00:41]}  Bd4 {[%clk 0:00:12]} 39. Kh1 {[%clk 0:00:23]}  Nc4 {[%clk 0:00:13]} 40. Rb4 {[%clk 0:00:21]} 1-0


[Site "https://www.chess.com"]

[Event "Titled Tuesday Blitz January 10 Early 2023"]
[White "Urazayev, Arystanbek"]
[Black "Szpar, Milosz"]
[WhiteFideId "13709810"]
[BlackFideId "1184989"]
[WhiteElo "2460"]
[BlackElo "2447"]
[Result "1-0"]
[Round "05"]
[TimeControl "180+2"]
[Date "2023.01.10"]
[WhiteClock "0:01:46"]
[BlackClock "0:01:05"]

1. e4 {[%clk 0:03:00]}  c5 {[%clk 0:02:59]} 2. Nf3 {[%clk 0:03:01]}  d6 {[%clk 0:03:00]} 3. d4 {[%clk 0:03:02]}  cxd4 {[%clk 0:03:01]} 4. Nxd4 {[%clk 0:03:02]}  Nf6 {[%clk 0:03:01]} 5. Nc3 {[%clk 0:03:03]}  Nc6 {[%clk 0:03:02]} 6. Bg5 {[%clk 0:03:02]}  Bd7 {[%clk 0:03:01]} 7. Qd2 {[%clk 0:02:58]}  Rc8 {[%clk 0:03:01]} 8. Bxf6 {[%clk 0:02:48]}  gxf6 {[%clk 0:03:01]} 9. Be2 {[%clk 0:02:49]}  Nxd4 {[%clk 0:03:00]} 10. Qxd4 {[%clk 0:02:49]}  Qa5 {[%clk 0:02:59]} 11. O-O {[%clk 0:02:47]}  Rg8 {[%clk 0:02:59]} 12. Bf3 {[%clk 0:02:43]}  Qc5 {[%clk 0:02:40]} 13. Qd3 {[%clk 0:02:43]}  Bh6 {[%clk 0:02:29]} 14. Rfe1 {[%clk 0:02:39]}  Bf4 {[%clk 0:02:29]} 15. Nd5 {[%clk 0:02:36]}  Be5 {[%clk 0:02:24]} 16. c3 {[%clk 0:02:36]}  b5 {[%clk 0:02:13]} 17. a3 {[%clk 0:02:34]}  Rg5 {[%clk 0:01:59]} 18. h4 {[%clk 0:02:33]}  Rg7 {[%clk 0:01:57]} 19. Qd2 {[%clk 0:02:33]}  Kf8 {[%clk 0:01:49]} 20. Qh6 {[%clk 0:02:31]}  Re8 {[%clk 0:01:49]} 21. Rad1 {[%clk 0:02:25]}  Kg8 {[%clk 0:01:49]} 22. Rd3 {[%clk 0:02:07]}  Rg6 {[%clk 0:01:49]} 23. Qd2 {[%clk 0:02:06]}  Qc8 {[%clk 0:01:43]} 24. Bh5 {[%clk 0:02:06]}  Rg7 {[%clk 0:01:41]} 25. f4 {[%clk 0:02:07]}  e6 {[%clk 0:01:34]} 26. fxe5 {[%clk 0:02:01]}  exd5 {[%clk 0:01:34]} 27. exf6 {[%clk 0:02:02]}  dxe4 {[%clk 0:01:31]} 28. Qh6 {[%clk 0:02:02]}  Qc5+ {[%clk 0:01:19]} 29. Kh1 {[%clk 0:01:51]}  Rxg2 {[%clk 0:01:06]} 30. Kxg2 {[%clk 0:01:47]}  Bh3+ {[%clk 0:01:05]} 31. Rxh3 {[%clk 0:01:46]} 1-0


[Site "https://www.chess.com"]

[Event "Titled Tuesday Blitz January 10 Early 2023"]
[White "Lagarde, Maxime"]
[Black "Mohamed Anees M"]
[WhiteFideId "662399"]
[BlackFideId "35065815"]
[WhiteElo "2579"]
[BlackElo "2315"]
[Result "1-0"]
[Round "05"]
[TimeControl "180+2"]
[Date "2023.01.10"]
[WhiteClock "0:01:43"]
[BlackClock "0:00:45"]

1. d4 {[%clk 0:03:00]}  d5 {[%clk 0:02:56]} 2. Nf3 {[%clk 0:03:00]}  Nf6 {[%clk 0:02:56]} 3. Bf4 {[%clk 0:03:00]}  c5 {[%clk 0:02:56]} 4. e3 {[%clk 0:03:00]}  Nc6 {[%clk 0:02:55]} 5. Nbd2 {[%clk 0:03:00]}  Qb6 {[%clk 0:02:55]} 6. c4 {[%clk 0:02:56]}  cxd4 {[%clk 0:02:50]} 7. exd4 {[%clk 0:02:55]}  Bf5 {[%clk 0:02:48]} 8. cxd5 {[%clk 0:02:35]}  Nxd5 {[%clk 0:02:46]} 9. Nc4 {[%clk 0:02:36]}  Qd8 {[%clk 0:02:29]} 10. Bg3 {[%clk 0:02:32]}  e6 {[%clk 0:02:29]} 11. a3 {[%clk 0:02:31]}  Be7 {[%clk 0:02:24]} 12. Bd3 {[%clk 0:02:30]}  Bxd3 {[%clk 0:02:15]} 13. Qxd3 {[%clk 0:02:31]}  O-O {[%clk 0:02:15]} 14. O-O {[%clk 0:02:29]}  Rc8 {[%clk 0:02:15]} 15. Rac1 {[%clk 0:02:28]}  a6 {[%clk 0:02:13]} 16. Rc2 {[%clk 0:02:25]}  b5 {[%clk 0:02:11]} 17. Nce5 {[%clk 0:02:25]}  Nxe5 {[%clk 0:02:10]} 18. Nxe5 {[%clk 0:02:26]}  Rxc2 {[%clk 0:01:54]} 19. Qxc2 {[%clk 0:02:27]}  Qb6 {[%clk 0:01:53]} 20. Nd7 {[%clk 0:02:25]}  Qxd4 {[%clk 0:01:47]} 21. Nxf8 {[%clk 0:02:25]}  Bxf8 {[%clk 0:01:48]} 22. Rd1 {[%clk 0:02:25]}  Qb6 {[%clk 0:01:43]} 23. h4 {[%clk 0:02:24]}  h6 {[%clk 0:01:41]} 24. Qc8 {[%clk 0:02:22]}  a5 {[%clk 0:01:24]} 25. Rc1 {[%clk 0:02:15]}  Ne7 {[%clk 0:01:20]} 26. Qc7 {[%clk 0:02:03]}  Qd4 {[%clk 0:01:18]} 27. Qe5 {[%clk 0:01:50]}  Qd2 {[%clk 0:01:13]} 28. Qc3 {[%clk 0:01:50]}  Qxc3 {[%clk 0:00:47]} 29. Rxc3 {[%clk 0:01:49]}  f6 {[%clk 0:00:47]} 30. Rc5 {[%clk 0:01:47]}  b4 {[%clk 0:00:47]} 31. Rxa5 {[%clk 0:01:47]}  bxa3 {[%clk 0:00:46]} 32. bxa3 {[%clk 0:01:48]}  Nd5 {[%clk 0:00:46]} 33. Ra8 {[%clk 0:01:48]}  Kf7 {[%clk 0:00:46]} 34. a4 {[%clk 0:01:47]}  Bc5 {[%clk 0:00:45]} 35. h5 {[%clk 0:01:44]}  e5 {[%clk 0:00:45]} 36. Ra5 {[%clk 0:01:43]} 1-0


[Site "https://www.chess.com"]